Cogmind - Beta 13 @@@ ROGUE MODE // 2024.04.08 @ 14:14:38 Player: Lunace Result: Destroyed by as-97355 with Assembled Heavy Rifle Performance ------------- Evolutions (0) 0 Regions Visited (2) 400 Robots Destroyed (15) 75 Value Destroyed (256) 256 Prototype IDs (0) 0 Alien Tech Used (0) 0 Bonus (0) 0 TOTAL SCORE: 731 Bonus ------- None Cogmind --------- Core Integrity 0/250 Matter 256/300 Energy 52/100 System Corruption 14% Temperature Cool (41) Movement Treading (320) Ox2 Location -10/Mines Parts ------- > --- POWER (1) -------- (None) > --- PROPULSION (2) --- Light Treads > --- UTILITY (2) ------ High-capacity Storage Unit > --- WEAPON (2) ------- Light Cannon > --- INVENTORY (20) --- Huge Storage Unit Medium Matter Pod (61) High-capacity Matter Pod (0) Datajack Peak State ------------ > --- POWER ------------ Light Ion Engine > --- PROPULSION ------- Light Treads Light Treads > --- UTILITY ---------- Small Storage Unit Improved Terrain Scanner > --- WEAPON ----------- Medium Laser Light Assault Rifle > --- INVENTORY -------- Light Ion Engine Aluminum Leg Aluminum Leg Light Assault Rifle Mining Laser [Rating: 9] Favorites ----------- Power Light Ion Engine Engine Light Ion Engine Propulsion Light Treads Treads Light Treads Utility Transport Network Coupler Device Improved Terrain Scanner Storage Small Storage Unit Processor Transport Network Coupler Weapon Medium Laser Energy Gun Medium Laser Ballistic Gun Light Assault Rifle Ballistic Cannon Light Cannon Special Weapon Mining Laser Build | -11 -10 -10 ------- Run | Yrd Mat Min Slots Evolved . | . . . Power . | . . . Propulsion . | . . . Utility . | . . . Weapon . | . . . Parts Attached 21 | 7 9 5 Power 2 | 1 . 1 Engine 2 | 1 . 1 Core . | . . . Reactor . | . . . Propulsion 3 | 2 . 1 Treads 3 | 2 . 1 Leg . | . . . Wheel . | . . . Hover . | . . . Flight . | . . . Utility 7 | 1 5 1 Device 2 | . 1 1 Storage 4 | 1 3 . Processor 1 | . 1 . Hackware . | . . . Protection . | . . . Artifact . | . . . Weapon 9 | 3 4 2 Energy Gun 4 | 1 3 . Energy Cannon . | . . . Ballistic Gun 2 | 2 . . Ballistic Cannon 1 | . . 1 Launcher . | . . . Special Weapon 2 | . 1 1 Impact Weapon . | . . . Slashing Weapon . | . . . Piercing Weapon . | . . . Special Melee Weapon . | . . . Unidentified Prototypes . | . . . Parts Lost 8 | . 1 7 Power 2 | . 1 1 Propulsion 2 | . . 2 Utility 1 | . . 1 Weapon 3 | . . 3 Highest Loss Streak 8 | . 1 8 To Critical Strikes . | . . . Average Slot Usage (%) 99 | . 99 92 Engine 14 | . 14 14 Treads 27 | . 28 21 Device 2 | . 2 14 Storage 14 | . 14 14 Processor 11 | . 11 . Energy Gun 26 | . 26 28 Naked Turns . | . . . Heaviest Build 48 | 11 47 48 Greatest Support 40 | 40 40 40 Greatest Overweight (x) 1 | . 1 1 Average Overweight (x) . | . . 1 Largest Inventory Capacity 25 | 8 25 20 Average Capacity 13 | 7 13 20 Most Carried 10 | 5 10 9 Average Carried 7 | 3 7 6 Final Capacity 20 | 8 20 20 Final Carried 9 | 5 9 4 Class Distribution -------------------- 100% | Mutant Dominant Class ---------------- Mutant | -10/Materials Mutant | -10/Mines Resources | -11 -10 -10 ----------- Run | Yrd Mat Min Matter Collected 402 | 279 123 . Remotely . | . . . Salvage Created 440 | 93 330 17 Parts 29 | 12 17 . Haulers Intercepted 2 | . 2 . Recyclers Shooed 2 | . 2 . Parts Field Recycled . | . . . Retrieved Matter . | . . . Parts Self-Destructed . | . . . Prevented . | . . . Kills | -11 -10 -10 ------- Run | Yrd Mat Min Combat Hostiles Destroyed 5 | . 4 1 Guns 3 | . 2 1 Classes Destroyed 6 | 1 4 1 Tunneler 6 | 5 1 . Hauler 2 | . 2 . Operator 1 | . 1 . Watcher 2 | . 2 . Grunt 4 | . 4 . Assembled 1 | . . 1 Best Kill Streak 3 | 2 3 1 Combat Bots Only 2 | . 2 1 Max Kills in Single Turn 1 | 1 1 1 Gunslinging . | . . . Exploded . | . . . Melee . | . . . Uniques/NPCs Destroyed . | . . . Combat | -11 -10 -10 -------- Run | Yrd Mat Min Hostile Shots Fired 100 | . 59 41 Missed 21 | . 17 4 Damage Taken 1122 | . 484 638 Core 264 | . 63 201 Absorbed by Shields . | . . . Regen/Repaired (Parts) 59 | . 59 . Core Remaining (%) 100 | 100 . . Volleys Fired 52 | 9 40 3 Largest 2 | 2 2 2 Hottest 100 | 70 100 100 Shots Fired 96 | 18 74 4 Gun 89 | 18 68 3 Cannon 1 | . . 1 Launcher . | . . . Special 6 | . 6 . Kinetic 12 | 9 2 1 Thermal 84 | 9 72 3 Explosive . | . . . Electromagnetic . | . . . Robot Hit Streak 9 | 9 6 6 Robot Miss Streak 2 | 1 2 1 Penetration Max . | . . . Secondary Targets . | . . . Shots Hit Robots 59 | 11 45 3 Core Hits 26 | 6 16 4 Critical Kills . | . . . Critical Parts Destroyed . | . . . Critical Strikes 8 | . 8 . Burn 8 | . 8 . Melee Attacks . | . . . Impact . | . . . Slashing . | . . . Piercing . | . . . Sneak Attacks . | . . . Combat Hostiles . | . . . Follow-up Attacks . | . . . Damage Inflicted 759 | 130 572 57 Guns 737 | 130 569 38 Cannons 19 | . . 19 Explosions . | . . . Melee . | . . . Ramming 3 | . 3 . Kinetic 71 | 44 8 19 Thermal 685 | 86 561 38 Explosive . | . . . Electromagnetic . | . . . Impact . | . . . Slashing . | . . . Piercing . | . . . Highest Corruption 14 | . . 14 Average Corruption 7 | . . 7 Corruption Purged . | . . . Corruption Blocked . | . . . Effects 1 | . . 1 Message Errors 1 | . . 1 Overload Shots . | . . . Overflow Damage . | . . . Projectiles . | . . . Explosions . | . . . Melee . | . . . Knockbacks 2 | . . 2 Impact . | . . . Kinetic 1 | . . 1 Secondary 1 | . . 1 Self-Inflicted Damage . | . . . Shots . | . . . Rammed 1 | . 1 . Targets Rammed 1 | . 1 . Kicked . | . . . Crushed . | . . . Highest Temperature 315 | 70 315 44 Average Temperature 84 | 24 96 26 Received Heat Transfer 235 | . 135 100 Siege Activations . | . . . Robots Corrupted . | . . . Combat Hostiles . | . . . Parts Fried . | . . . Impact Corruptions . | . . . Robots Melted 3 | . 3 . Combat Hostiles 2 | . 2 . Parts Melted 9 | . 9 . Heat Transferred 2627 | 259 2257 111 Parts Sabotaged . | . . . Parts Stolen . | . . . Parts Stripped . | . . . Power Chain Reactions . | . . . Alert | -11 -10 -10 ------- Run | Yrd Mat Min Peak Influence 128 | 25 128 15 Initial 16 | . 16 . Average 41 | 10 47 1 Maximum Alert Level . | . . . Low Security (%) 100 | 100 100 100 Level 1 . | . . . Level 2 . | . . . Level 3 . | . . . Level 4 . | . . . Level 5 . | . . . High Security . | . . . Max Security . | . . . Squads Dispatched 1 | . 1 . Investigation 1 | . 1 . Extermination . | . . . Reinforcement . | . . . Assault . | . . . Garrison . | . . . Intercept . | . . . Searches Triggered . | . . . Construction Impeded . | . . . Haulers Reinforced . | . . . Active Scanning Responses . | . . . Cargo Convoy Interrupts . | . . . Stealth | -11 -10 -10 --------- Run | Yrd Mat Min Distress Signals . | . . . Communications Jammed . | . . . Distress Signals . | . . . Times Spotted 29 | . 14 15 Peak Tracking Total 16 | . 4 16 Tactical Retreats 1 | . 1 . Traps | -11 -10 -10 ------- Run | Yrd Mat Min Traps Triggered 2 | . 2 . Indirectly . | . . . Trap Hack Attempts . | . . . Triggered . | . . . Disarmed . | . . . Reprogrammed . | . . . Reused . | . . . Traps Extracted . | . . . Installed . | . . . Triggered . | . . . Machines | -11 -10 -10 ---------- Run | Yrd Mat Min Machines Disabled . | . . . Max in Single Turn . | . . . Machines Repaired . | . . . Machines Dismantled . | . . . Machines Sabotaged . | . . . Overloaded Fab Kills . | . . . Hacking | -11 -10 -10 --------- Run | Yrd Mat Min Machines Accessed 8 | . 8 . Terminals 5 | . 5 . Fabricators . | . . . Repair Stations 1 | . 1 . Recycling Units 2 | . 2 . Scanalyzers . | . . . Garrison Access . | . . . Total Hacks 17 | . 17 . Successful 6 | . 6 . Failed 11 | . 11 . Catastrophic 5 | . 5 . Database Lockouts . | . . . Manual 12 | . 12 . Terminals 11 | . 11 . Fabricators . | . . . Repair Stations 2 | . 2 . Recycling Units 4 | . 4 . Scanalyzers . | . . . Garrison Access . | . . . Terminal Hacks 1 | . 1 . Branch Access Points 1 | . 1 . Fabricator Hacks . | . . . Repair Station Hacks 2 | . 2 . Scan Component 1 | . 1 . Repair 1 | . 1 . Recycling Unit Hacks 2 | . 2 . Report Inventory 1 | . 1 . Retrieve Components 1 | . 1 . Scanalyzer . | . . . Garrison Access Hacks . | . . . Unauthorized Hacks 1 | . 1 . Terminals 1 | . 1 . Botnet 1 | . 1 . Fabricators . | . . . Repair Stations . | . . . Recycling Units . | . . . Scanalyzers . | . . . Garrison Access . | . . . Data Cores Recovered . | . . . Used . | . . . Hacking Detections 6 | . 6 . Full Trace Events 2 | . 2 . Feedback Events . | . . . Feedback Blocked . | . . . Robot Schematics Acquired . | . . . Robots Built . | . . . Authchips . | . . . Time . | . . . Total Robot Build Rating . | . . . Part Schematics Acquired . | . . . Parts Built . | . . . Authchips . | . . . Time . | . . . Total Part Build Rating . | . . . Parts Repaired 1 | . 1 . Time 26 | . 26 . Parts Recycled . | . . . Recycled Matter . | . . . Retrieved Matter . | . . . Retrieved Components 2 | . 2 . Parts Scanalyzed . | . . . Part Schematics Acquired . | . . . Parts Damaged . | . . . Bothacking | -11 -10 -10 ------------ Run | Yrd Mat Min Used RIF Installer . | . . . Robots Hacked . | . . . Non-combat . | . . . Combat . | . . . Robot Hacks Applied . | . . . Relay Couplers Released . | . . . Fabnet Peak Effective % . | . . . Robots Rewired . | . . . Allies Hacked . | . . . Hacks Repelled . | . . . Allies | -11 -10 -10 -------- Run | Yrd Mat Min Total Allies . | . . . Largest Group . | . . . Highest-Rated Group . | . . . Highest-Rated Ally . | . . . Total Orders . | . . . Ally Attacks . | . . . Total Damage . | . . . Kills . | . . . Allies Corrupted . | . . . Allies Melted . | . . . Intel | -11 -10 -10 ------- Run | Yrd Mat Min Robot Analysis Total . | . . . Derelict Logs Recovered . | . . . Drone Launches . | . . . Drone Recoveries . | . . . Exploration | -11 -10 -10 ------------- Run | Yrd Mat Min Turns Passed 1328 | 192 1110 26 Spaces Moved 555 | 96 453 6 Core 1 | 1 . . Treads 554 | 95 453 6 Legs . | . . . Wheels . | . . . Hover . | . . . Flight . | . . . Fastest Speed 50 | 50 160 240 Average Speed 188 | 158 193 240 Slowest Speed 240 | 160 240 240 Overloaded Moves . | . . . Propulsion Burnouts . | . . . Robots Hopped . | . . . Cave-ins Triggered . | . . . Exploration Rate (%) 29 | 5 77 5 Regions Visited 2 Branch Regions 1 Pre-discovered Areas . | . . . Known Exits Taken 1 | . 1 . Unknown Exits Taken 1 | 1 . . Scrap Searched . | . . . Spaces Dug . | . . . Terrain Destroyed . | . . . Melee . | . . . Projectile . | . . . AOE . | . . . Terrain Rammed . | . . . Walls Destroyed . | . . . Machines Disabled . | . . . Actions | -11 -10 -10 --------- Run | Yrd Mat Min Total 731 | 116 600 15 Wait 83 | . 83 . Move 553 | 95 452 6 Hop . | . . . Pick Up 13 | 5 8 . Fast Attach 9 | 6 3 . Attach 5 | . . 5 Detach . | . . . Swap 7 | 1 6 . Drop 8 | . 7 1 Fire 52 | 9 40 3 Melee . | . . . Ram . | . . . Kick . | . . . Crush 1 | . 1 . Escape Stasis . | . . . Rewire . | . . . Trap . | . . . Miscellaneous . | . . . Route ------- -11/Scrapyard -10/Materials (discovered 2 exits: [*Mat] / *Min) -10/Mines History --------- Turn | Location | Event 11 | -11/Scrapyard | Discovered new exit (range 16) 193 | -11/Scrapyard | Entered Materials 315 | -10/Materials | Build established: Mutant 697 | -10/Materials | Identified exit to Mines 834 | -10/Materials | Discovered new exit (range 16) 1038 | -10/Materials | Repaired Med. Laser 1303 | -10/Materials | Entered Mines 1304 | -10/Mines | Assembled infested the area 1305 | -10/Mines | Met a Derelict bent on vengeance 1326 | -10/Mines | Core integrity fell below 50% 1328 | -10/Mines | Core integrity fell below 20% 1329 | -10/Mines | System corruption reached 10% 1329 | -10/Mines | Destroyed by as-97355 with Assembled Heavy Rifle Last Messages --------------- F5-1TW(g): "I have the funny feeling that things are about to get a lot worse around here, see you around!" F5-1TW(g) slips back into the shadows. Lgt. Treads destroyed. System corrupted by crushing effect (+1). Lgt. Ion Engine destroyed. System corrupted by crushing effect (+4). Sensor Array destroyed. System corrupted by crushing effect (+2). Med. Laser destroyed. System corrupted by crushing effect (+1). EU%CBT#PA3Q&NMQ<|HK47WXD Lgt. Treads destroyed. as-52972 destroyed. Med. Laser destroyed. System corrupted by crushing effect (+1). Mining Laser destroyed. System corrupted by crushing effect (+5). as-99860 knocked back. Map ----- +----------------------------------------------------+ | ?????????????????????????????????????? | | ?????????????????????????????????????? | | ?????????????????????????????????????? | | ?????????????????????????????????????? | | ?????????????????????????????????????? | | ?????????????????????????????????????? | | ?????????????????????????????????????? | | ?????????????????????????????????????? | | ?????????????????????????????????????? | | ?????????????????????????????????????? | | ?????????????????????????????????????? | | ?????????????????????????????????????? | | ?????????????????????????????????????? | | ?????????????????????????????????????? | | ?????????????????????????????????????? | | ?????????????????????????????????????? | | ?????????????????????????????????????? | | ????###??????????????????????????????? | | ???## ##????????????????????????????? | | ???# ##???????????????????????????? | | ???# ########????????????????????? | | ????# #????????????????????? | | ????# #????????????????????? | | ????## #% ##???????????????????? | | ?????#######aaaaa## #???????????????? | | ???????????# @aa #???????????????? | | ???????????## aaa a aa ????????? | | ????????????###### """a ????????? | | ??????????????????? """?????????????? | | ?????????????????????"""?????????????? | | ?????????????????????????????????????? | | ?????????????????????????????????????? | | ?????????????????????????????????????? | | ?????????????????????????????????????? | | ?????????????????????????????????????? | | ?????????????????????????????????????? | | ?????????????????????????????????????? | | ?????????????????????????????????????? | | ?????????????????????????????????????? | | ?????????????????????????????????????? | | ?????????????????????????????????????? | | ?????????????????????????????????????? | | ?????????????????????????????????????? | | ?????????????????????????????????????? | | ?????????????????????????????????????? | | ?????????????????????????????????????? | | ?????????????????????????????????????? | | ?????????????????????????????????????? | | ?????????????????????????????????????? | | ?????????????????????????????????????? | +----------------------------------------------------+ Best States ------------- Heat Dissipation 25 Energy Generation 10 Energy Capacity 125 Matter Stores 300 Matter Capacity 300 Sight Range 16 Robot Scan Range 14 Terrain Scan Range 16 Terrain Scan Density 10 Evasion (%) 40 Recoil Reduction 2 Item Schematics ----------------- None Robot Schematics ------------------ None Fabricated ------------ Nothing Alien Tech Used ----------------- None Achievements -------------- None Challenges ------------ None Game ------ Seed LongswordSurveybotSabre Manual? 0 Play Time 00:11:19 Cumulative 39.4 hours Start 2024.04.08 @ 14:04:05 End 2024.04.08 @ 14:14:38 Sessions 1 Manual Loads 0 Difficulty Rogue Special Mode None Game No. 41 Rogue 36 Adventurer 5 Explorer 0 Win Type - Total 1 Types 1/0/0/0/0/0/0/0/0 Lore% 20 Gallery% 38 Achievement% 30 Wizard Run 0 Options --------- Layout 1 ASCII 0 Keyboard 0 Movement Mouse Keybinds 0 Fullscreen 1 Font 24/Terminus Map View 50x35 Zoom Use 0% Tactical HUD 0 Map Filters NONE Filters NONE Steam 1 RUN: bcd26c22-a085-4654-a19d-ff776f67d2bd